[Event "18th Izmir Open 2019"]
[Site "Izmir"]
[Date "2019.09.02"]
[Round "1.1"]
[White "Mutlu, Ezgi"]
[Black "Shanava, Konstantine"]
[Result "0-1"]
[ECO "B15"]
[WhiteElo "1340"]
[BlackElo "2500"]
[Annotator "ChessBase"]
[PlyCount "102"]
[EventDate "2019.09.02"]
[EventType "swiss"]
[EventCountry "TUR"]
[SourceTitle "playchess.com"]
[Source "ChessBase"]
[SourceQuality "1"]
[TimeControl "5400+30"]

1. e4 {[%emt 0:00:30]} g6 {[%emt 0:00:30]} 2. d4 {[%emt 0:00:00]} Bg7 {[%emt 0:00:30]} 3. Nf3 {[%emt 0:01:00]} c6 {[%emt 0:00:00]} 4. Nc3 {[%emt 0:01:30]} d5 {[%emt 0:00:00]} 5. exd5 {[%emt 0:03:30]} cxd5 {[%emt 0:03:30]} 6. h3 {[%emt 0:00:30]} Nc6 {[%emt 0:00:30]} 7. Be3 {[%emt 0:04:30]} Nh6 {[%emt 0:00:00]} 8. Qd2 {[%emt 0:02:30]} Nf5 {[%emt 0:00:00]} 9. Rd1 {[%emt 0:04:30]} O-O {[%emt 0:00:30]} 10. Be2 {[%emt 0:01:30]} a6 {[%emt 0:00:30]} 11. O-O {[%emt 0:01:30]} b5 {[%emt 0:00:00]} 12. a3 {[%emt 0:01:30]} Bb7 {[%emt 0:00:00]} 13. Rfe1 {[%emt 0:02:30]} Rc8 {[%emt 0:00:30]} 14. Bf1 {[%emt 0:01:30]} Na5 {[%emt 0:00:00]} 15. Na2 {[%emt 0:06:30]} Nd6 {[%emt 0:06:00]} 16. Ne5 {[%emt 0:05:30]} Ne4 {[%emt 0:01:30]} 17. Qc1 {[%emt 0:03:30]} Ba8 {[%emt 0:01:30]} 18. Nb4 {[%emt 0:01:30]} Bb7 {[%emt 0:01:30]} 19. c3 {[%emt 0:07:30]} Nc4 {[%emt 0:00:30]} 20. Nxc4 {[%emt 0:04:30]} bxc4 {[%emt 0:00:30]} 21. Bh6 {[%emt 0:02:30]} e6 {[%emt 0:04:30]} 22. Bxg7 {[%emt 0:02:30]} Kxg7 {[%emt 0:00:00]} 23. Qf4 {[%emt 0:01:30]} Rb8 {[%emt 0:01:00]} 24. f3 {[%emt 0:01:30]} Nd6 {[%emt 0:00:30]} 25. Rd2 {[%emt 0:01:30]} h6 {[%emt 0:00:30]} 26. Nc2 {[%emt 0:00:30]} Qg5 {[%emt 0:00:30]} 27. Qxg5 {[%emt 0:00:30]} hxg5 {[%emt 0:00:30]} 28. Ne3 {[%emt 0:00:30]} Bc6 {[%emt 0:00:30]} 29. g4 {[%emt 0:01:30]} Rb7 {[%emt 0:00:30]} 30. Ree2 {[%emt 0:01:30]} Rfb8 {[%emt 0:00:00]} 31. Nd1 {[%emt 0:00:30]} Ba4 {[%emt 0:00:00]} 32. Nf2 {[%emt 0:01:30]} Nc8 {[%emt 0:03:30]} 33. Kg2 {[%emt 0:02:30]} Bd7 {[%emt 0:00:30]} 34. Nd1 {[%emt 0:01:30]} f6 {[%emt 0:00:00]} 35. Kg1 {[%emt 0:00:30]} Kf7 {[%emt 0:00:00]} 36. Kf2 {[%emt 0:00:30]} Ba4 {[%emt 0:00:30]} 37. Ke1 {[%emt 0:01:30]} Nb6 {[%emt 0:00:30]} 38. Rh2 {[%emt 0:01:30]} Bxd1 {[%emt 0:00:00]} 39. Kxd1 {[%emt 0:01:30]} Na4 {[%emt 0:00:00]} 40. h4 {[%emt 0:00:30]} Nxb2+ {[%emt 0:00:30]} 41. Ke1 {[%emt 0:00:30]} Na4 {[%emt 0:00:00]} 42. hxg5 {[%emt 0:00:30]} Rb1+ {[%emt 0:00:00]} 43. Kf2 {[%emt 0:01:30]} fxg5 {[%emt 0:00:30]} 44. Rh7+ {[%emt 0:01:30]} Kf6 {[%emt 0:00:00]} 45. Ra7 {[%emt 0:00:30]} R8b6 {[%emt 0:00:00]} 46. Kg1 {[%emt 0:00:30]} Nxc3 {[%emt 0:00:00]} 47. Rh2 {[%emt 0:01:30]} Nb5 {[%emt 0:00:00]} 48. Ra8 {[%emt 0:00:30]} Nxd4 {[%emt 0:00:30]} 49. Rh7 {[%emt 0:01:30]} R6b2 {[%emt 0:00:00]} 50. Rxa6 {[%emt 0:00:30]} Nxf3+ {[%emt 0:00:00]} 51. Kh1 {[%emt 0:00:30]} Rxf1# {[%emt 0:00:30]} 0-1

[Event "18th Izmir Open 2019"]
[Site "Izmir"]
[Date "2019.09.02"]
[Round "1.3"]
[White "Gonca, Harun"]
[Black "Soysal, Serkan"]
[Result "0-1"]
[ECO "B33"]
[WhiteElo "1411"]
[BlackElo "2401"]
[Annotator "NA"]
[PlyCount "40"]
[EventDate "2019.09.02"]
[EventType "swiss"]
[EventCountry "TUR"]
[SourceTitle "playchess.com"]
[Source "ChessBase"]
[SourceQuality "1"]
[TimeControl "5400+30"]

1. e4 {[%emt 0:00:30]} c5 {[%emt 0:01:30]} 2. Nf3 {[%emt 0:00:00]} Nc6 {[%emt 0:00:30]} 3. d4 {[%emt 0:00:00]} cxd4 {[%emt 0:00:00]} 4. Nxd4 {[%emt 0:00:30]} Nf6 {[%emt 0:02:00]} 5. Nc3 {[%emt 0:00:30]} e5 {[%emt 0:00:30]} 6. Nxc6 {[%emt 0:01:30]} bxc6 {[%emt 0:00:00]} 7. Bc4 {[%emt 0:00:30]} Bb4 {[%emt 0:00:00]} 8. Bd2 {[%emt 0:03:30]} O-O {[%emt 0:01:30]} 9. Qf3 {[%emt 0:01:30]} d5 {[%emt 0:02:30]} 10. exd5 {[%emt 0:01:30]} cxd5 {[%emt 0:00:30]} 11. Bb3 {[%emt 0:02:30]} Bg4 {[%emt 0:09:30]} 12. Qd3 {[%emt 0:05:30]} d4 {[%emt 0:03:30]} 13. Ne4 {[%emt 0:02:30]} Bxd2+ {[%emt 0:00:30]} 14. Nxd2 {[%emt 0:08:30]} e4 {[%emt 0:00:30]} 15. Qg3 {[%emt 0:03:30]} Qa5 {[%emt 0:05:30]} 16. c3 {[%emt 0:02:30]} e3 {[%emt 0:00:30]} 17. Nc4 {[%emt 0:03:30]} exf2+ {[%emt 0:01:30]} 18. Qxf2 {[%emt 0:00:30]} Rfe8+ {[%emt 0:00:30]} 19. Kf1 {[%emt 0:00:30]} Qa6 {[%emt 0:00:30]} 20. Qxd4 {[%emt 0:02:30]} Rad8 {[%emt 0:03:30]} 0-1

[Event "18th Izmir Open 2019"]
[Site "Izmir"]
[Date "2019.09.02"]
[Round "1.5"]
[White "Seker, Cinar"]
[Black "Guseynov, Alihan"]
[Result "0-1"]
[ECO "B06"]
[WhiteElo "1328"]
[BlackElo "2326"]
[Annotator "NA"]
[PlyCount "74"]
[EventDate "2019.09.02"]
[EventType "swiss"]
[EventCountry "TUR"]
[SourceTitle "playchess.com"]
[Source "ChessBase"]
[SourceQuality "1"]
[TimeControl "5400+30"]

1. e4 {[%emt 0:00:30]} g6 {[%emt 0:02:30]} 2. d4 {[%emt 0:00:00]} Bg7 {[%emt 0:00:00]} 3. Nf3 {[%emt 0:00:00]} d6 {[%emt 0:00:00]} 4. Nc3 {[%emt 0:00:00]} a6 {[%emt 0:00:30]} 5. Bc4 {[%emt 0:00:00]} b5 {[%emt 0:00:30]} 6. Bb3 {[%emt 0:01:30]} e6 {[%emt 0:00:30]} 7. d5 {[%emt 0:00:30]} e5 {[%emt 0:01:30]} 8. a4 {[%emt 0:00:30]} b4 {[%emt 0:00:30]} 9. Ne2 {[%emt 0:01:30]} Nd7 {[%emt 0:00:30]} 10. c3 {[%emt 0:01:30]} Rb8 {[%emt 0:01:30]} 11. Be3 {[%emt 0:01:30]} Ngf6 {[%emt 0:00:30]} 12. Bc2 {[%emt 0:02:30]} Ng4 {[%emt 0:09:30]} 13. Bg5 {[%emt 0:01:30]} f6 {[%emt 0:00:30]} 14. Bd2 {[%emt 0:00:30]} bxc3 {[%emt 0:01:30]} 15. Bxc3 {[%emt 0:01:30]} O-O {[%emt 0:01:30]} 16. h3 {[%emt 0:00:30]} Nh6 {[%emt 0:00:30]} 17. g4 {[%emt 0:01:30]} Nf7 {[%emt 0:07:30]} 18. h4 {[%emt 0:01:30]} Nc5 {[%emt 0:06:30]} 19. Rg1 {[%emt 0:00:30]} a5 {[%emt 0:02:30]} 20. h5 {[%emt 0:01:30]} Bh6 {[%emt 0:00:30]} 21. hxg6 {[%emt 0:02:30]} hxg6 {[%emt 0:00:30]} 22. b3 {[%emt 0:00:30]} c6 {[%emt 0:04:30]} 23. Rb1 {[%emt 0:03:30]} Kg7 {[%emt 0:04:30]} 24. Bd2 {[%emt 0:01:30]} Bxd2+ {[%emt 0:03:30]} 25. Qxd2 {[%emt 0:00:30]} Rb4 {[%emt 0:00:30]} 26. Nc3 {[%emt 0:00:30]} Bd7 {[%emt 0:06:30]} 27. g5 {[%emt 0:01:30]} fxg5 {[%emt 0:01:30]} 28. Nxg5 {[%emt 0:00:30]} Nxg5 {[%emt 0:00:00]} 29. Rxg5 {[%emt 0:02:30]} Rf4 {[%emt 0:04:00]} 30. Rg3 {[%emt 0:01:30]} Qh4 {[%emt 0:04:30]} 31. dxc6 {[%emt 0:00:30]} Rd4 {[%emt 0:00:30]} 32. Qe3 {[%emt 0:06:30]} Bxc6 {[%emt 0:14:30]} 33. Ne2 {[%emt 0:02:30]} Bxe4 {[%emt 0:02:30]} 34. Nxd4 {[%emt 0:15:30]} Bxc2 {[%emt 0:00:30]} 35. Nxc2 {[%emt 0:06:30]} Qh1+ {[%emt 0:01:43]} 36. Ke2 {[%emt 0:01:30]} Qxb1 {[%emt 0:00:18]} 37. Ne1 {[%emt 0:01:30]} Re4 {[%emt 0:00:19]} 0-1

[Event "18th Izmir Open 2019"]
[Site "Izmir"]
[Date "2019.09.02"]
[Round "1.6"]
[White "Kamer, Kayra"]
[Black "Kose, Arat Uygar"]
[Result "1-0"]
[ECO "B78"]
[WhiteElo "2304"]
[BlackElo "1415"]
[Annotator "NA"]
[PlyCount "79"]
[EventDate "2019.09.02"]
[EventType "swiss"]
[EventCountry "TUR"]
[SourceTitle "playchess.com"]
[Source "ChessBase"]
[SourceQuality "1"]
[TimeControl "5400+30"]

1. e4 {[%emt 0:00:00]} c5 {[%emt 0:00:00]} 2. Nf3 {[%emt 0:00:00]} d6 {[%emt 0:00:00]} 3. d4 {[%emt 0:00:00]} cxd4 {[%emt 0:00:00]} 4. Nxd4 {[%emt 0:00:00]} Nf6 {[%emt 0:00:00]} 5. Nc3 {[%emt 0:00:00]} g6 {[%emt 0:00:00]} 6. Be3 {[%emt 0:00:00]} Bg7 {[%emt 0:00:00]} 7. Bc4 {[%emt 0:00:30]} O-O {[%emt 0:00:30]} 8. f3 {[%emt 0:00:00]} Nc6 {[%emt 0:01:30]} 9. Bb3 {[%emt 0:00:00]} Bd7 {[%emt 0:00:30]} 10. Qd2 {[%emt 0:00:30]} Rc8 {[%emt 0:00:30]} 11. h4 {[%emt 0:00:30]} h5 {[%emt 0:00:30]} 12. O-O-O {[%emt 0:00:30]} Ne5 {[%emt 0:00:30]} 13. Bh6 {[%emt 0:00:30]} Nc4 {[%emt 0:04:30]} 14. Bxc4 {[%emt 0:00:00]} Rxc4 {[%emt 0:00:30]} 15. Bxg7 {[%emt 0:00:00]} Kxg7 {[%emt 0:00:30]} 16. g4 {[%emt 0:00:00]} hxg4 {[%emt 0:03:30]} 17. h5 {[%emt 0:00:00]} Nxh5 {[%emt 0:19:30]} 18. Rxh5 {[%emt 0:00:30]} Rh8 {[%emt 0:16:30]} 19. Rxh8 {[%emt 0:00:00]} Qxh8 {[%emt 0:00:30]} 20. Qe2 {[%emt 0:00:00]} Qc8 {[%emt 0:01:30]} 21. Qe3 {[%emt 0:01:30]} e5 {[%emt 0:04:30]} 22. Nde2 {[%emt 0:00:30]} gxf3 {[%emt 0:02:30]} 23. Qxf3 {[%emt 0:00:00]} Bg4 {[%emt 0:00:30]} 24. Qe3 {[%emt 0:00:00]} Qc5 {[%emt 0:03:30]} 25. Qxc5 {[%emt 0:00:30]} dxc5 {[%emt 0:00:30]} 26. Kd2 {[%emt 0:00:30]} f5 {[%emt 0:05:30]} 27. exf5 {[%emt 0:00:00]} gxf5 {[%emt 0:00:30]} 28. b3 {[%emt 0:00:00]} Rb4 {[%emt 0:07:30]} 29. Re1 {[%emt 0:00:30]} Rb6 {[%emt 0:00:30]} 30. Nd5 {[%emt 0:00:30]} Rd6 {[%emt 0:01:30]} 31. c4 {[%emt 0:00:00]} Kf7 {[%emt 0:00:30]} 32. Nec3 {[%emt 0:00:00]} e4 {[%emt 0:02:30]} 33. Rh1 {[%emt 0:00:30]} Kg6 {[%emt 0:00:30]} 34. Ke3 {[%emt 0:00:00]} Rd7 {[%emt 0:01:30]} 35. Kf4 {[%emt 0:00:00]} Bf3 {[%emt 0:02:30]} 36. Rg1+ {[%emt 0:00:30]} Kf7 {[%emt 0:01:30]} 37. Rg5 {[%emt 0:00:30]} Ke6 {[%emt 0:02:28]} 38. Rg6+ {[%emt 0:00:00]} Kf7 {[%emt 0:00:15]} 39. Rf6+ {[%emt 0:00:00]} Kg7 {[%emt 0:00:34]} 40. Rxf5 {[%emt 0:00:00]} 1-0

[Event "18th Izmir Open 2019"]
[Site "Izmir"]
[Date "2019.09.02"]
[Round "1.7"]
[White "Kaval, Zeynep Ruya"]
[Black "Isik, Alparslan"]
[Result "0-1"]
[ECO "A07"]
[WhiteElo "1263"]
[BlackElo "2200"]
[Annotator "NA"]
[PlyCount "68"]
[EventDate "2019.09.02"]
[EventType "swiss"]
[EventCountry "TUR"]
[SourceTitle "playchess.com"]
[Source "ChessBase"]
[SourceQuality "1"]
[TimeControl "5400+30"]

1. Nf3 {[%emt 0:00:30]} Nf6 {[%emt 0:00:30]} 2. d3 {[%emt 0:00:30]} d5 {[%emt 0:00:30]} 3. g3 {[%emt 0:00:30]} g6 {[%emt 0:01:30]} 4. Bg2 {[%emt 0:00:30]} Bg7 {[%emt 0:00:30]} 5. O-O {[%emt 0:00:30]} O-O {[%emt 0:00:30]} 6. Nbd2 {[%emt 0:02:30]} Nc6 {[%emt 0:02:30]} 7. c3 {[%emt 0:00:30]} e5 {[%emt 0:01:30]} 8. e4 {[%emt 0:02:30]} a5 {[%emt 0:01:30]} 9. Qc2 {[%emt 0:01:30]} h6 {[%emt 0:01:30]} 10. a4 {[%emt 0:02:30]} Be6 {[%emt 0:04:30]} 11. b3 {[%emt 0:04:30]} Qd7 {[%emt 0:04:30]} 12. Ba3 {[%emt 0:01:30]} Rfe8 {[%emt 0:00:00]} 13. exd5 {[%emt 0:09:30]} Nxd5 {[%emt 0:00:00]} 14. Ne4 {[%emt 0:00:30]} b6 {[%emt 0:00:30]} 15. Rad1 {[%emt 0:03:30]} Rad8 {[%emt 0:04:30]} 16. Rfe1 {[%emt 0:07:30]} Nde7 {[%emt 0:03:30]} 17. c4 {[%emt 0:08:30]} Bg4 {[%emt 0:00:30]} 18. Rd2 {[%emt 0:03:30]} f5 {[%emt 0:01:30]} 19. Nc3 {[%emt 0:01:30]} Bxf3 {[%emt 0:00:30]} 20. Bxf3 {[%emt 0:01:30]} Nd4 {[%emt 0:00:00]} 21. Qd1 {[%emt 0:00:30]} Nxf3+ {[%emt 0:00:00]} 22. Qxf3 {[%emt 0:01:30]} e4 {[%emt 0:00:00]} 23. Nxe4 {[%emt 0:04:30]} fxe4 {[%emt 0:00:00]} 24. Rxe4 {[%emt 0:01:30]} Nf5 {[%emt 0:00:30]} 25. Rxe8+ {[%emt 0:00:30]} Rxe8 {[%emt 0:00:00]} 26. Rd1 {[%emt 0:06:30]} Nd4 {[%emt 0:00:00]} 27. Qd5+ {[%emt 0:02:30]} Qxd5 {[%emt 0:00:30]} 28. cxd5 {[%emt 0:00:00]} Rd8 {[%emt 0:00:30]} 29. Kg2 {[%emt 0:00:00]} Rxd5 {[%emt 0:00:00]} 30. Rc1 {[%emt 0:00:30]} c5 {[%emt 0:00:00]} 31. Rb1 {[%emt 0:01:30]} Nc2 {[%emt 0:00:00]} 32. Bb2 {[%emt 0:00:00]} Rxd3 {[%emt 0:00:00]} 33. Bxg7 {[%emt 0:00:00]} Kxg7 {[%emt 0:00:30]} 34. Rb2 {[%emt 0:00:30]} Nd4 {[%emt 0:00:00]} 0-1

[Event "18th Izmir Open 2019"]
[Site "Izmir"]
[Date "2019.09.02"]
[Round "1.8"]
[White "Annaberdiyev, Babageldi"]
[Black "Denec, Mustafa Guclu"]
[Result "1-0"]
[ECO "C00"]
[WhiteElo "2205"]
[BlackElo "1389"]
[Annotator "NA"]
[PlyCount "98"]
[EventDate "2019.09.02"]
[EventType "swiss"]
[EventCountry "TUR"]
[SourceTitle "playchess.com"]
[Source "ChessBase"]
[SourceQuality "1"]
[TimeControl "5400+30"]

1. Nf3 {[%emt 0:01:30]} d5 {[%emt 0:05:30]} 2. g3 {[%emt 0:00:00]} Nf6 {[%emt 0:00:30]} 3. Bg2 {[%emt 0:00:00]} c5 {[%emt 0:00:30]} 4. O-O {[%emt 0:00:00]} e6 {[%emt 0:00:30]} 5. d3 {[%emt 0:00:00]} Be7 {[%emt 0:00:30]} 6. Nbd2 {[%emt 0:00:30]} Nc6 {[%emt 0:00:30]} 7. e4 {[%emt 0:00:00]} d4 {[%emt 0:02:30]} 8. a4 {[%emt 0:00:00]} a5 {[%emt 0:02:30]} 9. Nc4 {[%emt 0:00:30]} O-O {[%emt 0:01:30]} 10. h3 {[%emt 0:01:30]} h6 {[%emt 0:02:30]} 11. Nfe5 {[%emt 0:01:30]} Nxe5 {[%emt 0:04:30]} 12. Nxe5 {[%emt 0:01:30]} Nd7 {[%emt 0:03:30]} 13. Nc4 {[%emt 0:00:30]} e5 {[%emt 0:02:30]} 14. Qh5 {[%emt 0:00:30]} f6 {[%emt 0:05:30]} 15. f4 {[%emt 0:00:30]} Qe8 {[%emt 0:01:30]} 16. Qe2 {[%emt 0:01:30]} Ra6 {[%emt 0:01:30]} 17. f5 {[%emt 0:00:30]} Nb6 {[%emt 0:01:30]} 18. Nd2 {[%emt 0:03:30]} Nxa4 {[%emt 0:04:30]} 19. Bf3 {[%emt 0:00:00]} Bd7 {[%emt 0:02:30]} 20. Bh5 {[%emt 0:00:00]} Qd8 {[%emt 0:01:30]} 21. Nf3 {[%emt 0:05:30]} b5 {[%emt 0:00:30]} 22. Nh4 {[%emt 0:00:00]} Be8 {[%emt 0:06:30]} 23. Bg6 {[%emt 0:07:00]} Bxg6 {[%emt 0:04:30]} 24. Nxg6 {[%emt 0:00:30]} Rf7 {[%emt 0:01:30]} 25. Qg4 {[%emt 0:00:30]} Qe8 {[%emt 0:02:30]} 26. Bxh6 {[%emt 0:01:30]} gxh6 {[%emt 0:06:30]} 27. Nxe7+ {[%emt 0:00:00]} Kh8 {[%emt 0:01:30]} 28. Ng6+ {[%emt 0:00:00]} Kh7 {[%emt 0:00:30]} 29. Ra2 {[%emt 0:08:30]} Nb6 {[%emt 0:02:30]} 30. h4 {[%emt 0:00:30]} Nc8 {[%emt 0:00:30]} 31. Rfa1 {[%emt 0:01:30]} Qd8 {[%emt 0:06:30]} 32. Kg2 {[%emt 0:09:30]} Rg7 {[%emt 0:00:30]} 33. Qe2 {[%emt 0:02:30]} Ne7 {[%emt 0:00:30]} 34. h5 {[%emt 0:00:30]} Nc8 {[%emt 0:00:30]} 35. g4 {[%emt 0:01:30]} Nd6 {[%emt 0:01:30]} 36. Qd2 {[%emt 0:03:30]} Rga7 {[%emt 0:02:30]} 37. Rd1 {[%emt 0:08:30]} c4 {[%emt 0:08:43]} 38. c3 {[%emt 0:00:30]} cxd3 {[%emt 0:02:49]} 39. Qxd3 {[%emt 0:00:30]} dxc3 {[%emt 0:00:48]} 40. bxc3 {[%emt 0:02:30]} Rd7 {[%emt 0:00:40]} 41. Qd5 {[%emt 0:03:30]} Qa8 {[%emt 0:07:06]} 42. Qe6 {[%emt 0:00:30]} Qxe4+ {[%emt 0:01:06]} 43. Kh2 {[%emt 0:00:30]} Rg7 {[%emt 0:03:16]} 44. Rxd6 {[%emt 0:02:30]} Rxd6 {[%emt 0:00:10]} 45. Qxd6 {[%emt 0:00:30]} Qxg4 {[%emt 0:00:21]} 46. Qxf6 {[%emt 0:00:30]} Qxh5+ {[%emt 0:00:55]} 47. Kg3 {[%emt 0:02:30]} Qh1 {[%emt 0:01:14]} 48. Rg2 {[%emt 0:00:30]} Qe1+ {[%emt 0:00:30]} 49. Kh2 {[%emt 0:00:00]} Qd1 {[%emt 0:01:52]} 1-0

[Event "18th Izmir Open 2019"]
[Site "Izmir"]
[Date "2019.09.02"]
[Round "1.9"]
[White "Dolan, Ozan"]
[Black "Yilmaz, Turhan"]
[Result "0-1"]
[ECO "A07"]
[WhiteElo "1405"]
[BlackElo "2180"]
[Annotator "NA"]
[PlyCount "106"]
[EventDate "2019.09.02"]
[EventType "swiss"]
[EventCountry "TUR"]
[SourceTitle "playchess.com"]
[Source "ChessBase"]
[SourceQuality "1"]
[TimeControl "5400+30"]

1. g3 {[%emt 0:02:30]} d5 {[%emt 0:00:00]} 2. Bg2 {[%emt 0:00:30]} Nf6 {[%emt 0:00:00]} 3. Nf3 {[%emt 0:00:30]} c6 {[%emt 0:00:30]} 4. d3 {[%emt 0:00:30]} Bf5 {[%emt 0:00:30]} 5. b3 {[%emt 0:00:30]} e6 {[%emt 0:02:30]} 6. Bb2 {[%emt 0:00:00]} h6 {[%emt 0:00:00]} 7. Nbd2 {[%emt 0:01:00]} Be7 {[%emt 0:00:00]} 8. Rc1 {[%emt 0:00:30]} O-O {[%emt 0:00:30]} 9. O-O {[%emt 0:00:30]} Nbd7 {[%emt 0:00:00]} 10. Re1 {[%emt 0:00:30]} Bh7 {[%emt 0:00:00]} 11. h3 {[%emt 0:01:30]} Re8 {[%emt 0:00:30]} 12. c4 {[%emt 0:02:30]} Bf8 {[%emt 0:00:00]} 13. Ne5 {[%emt 0:01:30]} Nxe5 {[%emt 0:00:00]} 14. Bxe5 {[%emt 0:00:30]} Ba3 {[%emt 0:00:30]} 15. Rb1 {[%emt 0:02:30]} a5 {[%emt 0:00:00]} 16. Bb2 {[%emt 0:02:30]} Bxb2 {[%emt 0:00:00]} 17. Rxb2 {[%emt 0:00:30]} Qe7 {[%emt 0:00:30]} 18. e4 {[%emt 0:05:30]} dxe4 {[%emt 0:01:30]} 19. Nxe4 {[%emt 0:01:30]} Red8 {[%emt 0:00:00]} 20. Rd2 {[%emt 0:03:30]} Rd4 {[%emt 0:00:00]} 21. Qe2 {[%emt 0:02:30]} Rad8 {[%emt 0:04:30]} 22. Red1 {[%emt 0:01:30]} Ne8 {[%emt 0:00:30]} 23. Qe3 {[%emt 0:07:30]} Qb4 {[%emt 0:00:30]} 24. g4 {[%emt 0:03:30]} Nc7 {[%emt 0:00:30]} 25. Qg3 {[%emt 0:08:30]} Qe7 {[%emt 0:11:30]} 26. Qe5 {[%emt 0:07:30]} f6 {[%emt 0:07:30]} 27. Qxa5 {[%emt 0:08:30]} f5 {[%emt 0:00:30]} 28. Qc5 {[%emt 0:05:30]} Qf7 {[%emt 0:00:30]} 29. Nc3 {[%emt 0:04:30]} fxg4 {[%emt 0:03:30]} 30. Ne2 {[%emt 0:03:30]} Rxd3 {[%emt 0:00:30]} 31. Rxd3 {[%emt 0:00:00]} Rxd3 {[%emt 0:00:30]} 32. Rxd3 {[%emt 0:00:00]} Bxd3 {[%emt 0:00:00]} 33. Nd4 {[%emt 0:02:30]} gxh3 {[%emt 0:00:00]} 34. Bxh3 {[%emt 0:01:30]} Qg6+ {[%emt 0:00:30]} 35. Kh2 {[%emt 0:00:30]} Qf6 {[%emt 0:00:30]} 36. Kg2 {[%emt 0:09:51]} e5 {[%emt 0:00:30]} 37. Nf3 {[%emt 0:02:42]} Be4 {[%emt 0:00:30]} 38. Qe3 {[%emt 0:00:36]} Qf4 {[%emt 0:00:30]} 39. Qxf4 {[%emt 0:03:46]} exf4 {[%emt 0:00:30]} 40. Bg4 {[%emt 0:00:55]} g6 {[%emt 0:00:00]} 41. Kg1 {[%emt 0:00:36]} Bxf3 {[%emt 0:01:00]} 42. Bxf3 {[%emt 0:00:03]} Kf7 {[%emt 0:00:30]} 43. Be4 {[%emt 0:00:47]} g5 {[%emt 0:00:00]} 44. f3 {[%emt 0:00:44]} Ke6 {[%emt 0:00:00]} 45. Kf2 {[%emt 0:00:29]} Ke5 {[%emt 0:00:30]} 46. Bg6 {[%emt 0:01:44]} Kd4 {[%emt 0:00:30]} 47. Kg2 {[%emt 0:01:36]} Ke3 {[%emt 0:00:30]} 48. Bf5 {[%emt 0:01:01]} c5 {[%emt 0:00:00]} 49. Bc8 {[%emt 0:00:37]} b6 {[%emt 0:00:00]} 50. Bb7 {[%emt 0:00:21]} Ne8 {[%emt 0:00:30]} 51. Kf1 {[%emt 0:01:13]} Nd6 {[%emt 0:00:00]} 52. Ba8 {[%emt 0:00:15]} Nf5 {[%emt 0:00:00]} 53. Kg2 {[%emt 0:01:21]} Nh4+ {[%emt 0:00:30]} 0-1

[Event "18th Izmir Open 2019"]
[Site "Izmir"]
[Date "2019.09.03"]
[Round "2.4"]
[White "Bozkurt, Atilla"]
[Black "Koksal, Ege"]
[Result "0-1"]
[ECO "B10"]
[WhiteElo "1721"]
[BlackElo "2375"]
[Annotator "RC"]
[PlyCount "60"]
[EventDate "2019.09.02"]
[EventType "swiss"]
[EventCountry "TUR"]
[SourceTitle "playchess.com"]
[Source "ChessBase"]
[SourceQuality "1"]
[TimeControl "5400+30"]

1. e4 {[%emt 0:18:30]} c6 {[%emt 0:35:30]} 2. d3 {[%emt 0:00:30]} d5 {[%emt 0:00:30]} 3. Nd2 {[%emt 0:04:30]} e5 {[%emt 0:00:30]} 4. Ngf3 {[%emt 0:01:30]} Bd6 {[%emt 0:00:30]} 5. g3 {[%emt 0:00:30]} Nf6 {[%emt 0:00:30]} 6. Bg2 {[%emt 0:00:30]} O-O {[%emt 0:00:30]} 7. O-O {[%emt 0:01:30]} Bg4 {[%emt 0:00:30]} 8. c3 {[%emt 0:01:30]} Nbd7 {[%emt 0:00:30]} 9. Qc2 {[%emt 0:00:30]} Qc7 {[%emt 0:00:30]} 10. Re1 {[%emt 0:00:30]} Rfe8 {[%emt 0:00:30]} 11. Nf1 {[%emt 0:01:30]} h6 {[%emt 0:00:30]} 12. h3 {[%emt 0:00:30]} Be6 {[%emt 0:00:30]} 13. g4 {[%emt 0:00:30]} dxe4 {[%emt 0:00:30]} 14. dxe4 {[%emt 0:00:30]} Bf8 {[%emt 0:00:30]} 15. Ng3 {[%emt 0:00:30]} Nc5 {[%emt 0:00:30]} 16. Be3 {[%emt 0:00:30]} Rad8 {[%emt 0:00:30]} 17. Bf1 {[%emt 0:00:30]} Ncxe4 {[%emt 0:00:30]} 18. Nxe4 {[%emt 0:03:30]} Nxe4 {[%emt 0:05:30]} 19. Qxe4 {[%emt 0:08:30]} Bd5 {[%emt 0:00:30]} 20. Qa4 {[%emt 0:00:30]} Bxf3 {[%emt 0:00:30]} 21. Qxa7 {[%emt 0:00:30]} Qd7 {[%emt 0:00:30]} 22. Bg2 {[%emt 0:10:30]} Bxg2 {[%emt 0:00:30]} 23. Kxg2 {[%emt 0:00:30]} Qd5+ {[%emt 0:00:00]} 24. f3 {[%emt 0:01:30]} b5 {[%emt 0:02:00]} 25. Bf2 {[%emt 0:05:30]} Ra8 {[%emt 0:03:30]} 26. Qb7 {[%emt 0:04:30]} e4 {[%emt 0:02:30]} 27. Rxe4 {[%emt 0:04:30]} Rxe4 {[%emt 0:00:30]} 28. Qxa8 {[%emt 0:00:00]} Rf4 {[%emt 0:00:30]} 29. Bg3 {[%emt 0:13:34]} Qxf3+ {[%emt 0:01:30]} 30. Kh2 {[%emt 0:00:04]} Re4 {[%emt 0:00:30]} 0-1